bitfinex/quotes_ETHUSD_20230405
["timestamp","ask_amount","ask_price","bid_price","bid_amount"]
[1680712416478,0.10744612,1894.2,1894.1,3.370042]
[1680712416740,0.10744612,1894.2,1894.1,0.370042]
[1680712417550,0.10744612,1894.2,1894.1,0.388512]
[1680712420059,0.10744612,1894.2,1894.1,0.425462]
[1680712420262,0.10744612,1894.2,1894.1,0.370042]
[1680712421764,0.10744612,1894.2,1894.1,1.474042]
[1680712421974,0.10744612,1894.2,1894.1,1.334]
[1680712422175,0.36625245,1894.2,1894.1,1.334]
[1680712423065,0.10744612,1894.2,1894.1,5.8999]
[1680712423249,0.10744612,1894.2,1894.1,10.57059]
[1680712424296,0.10744612,1894.2,1894.1,10.57399051]
[1680712428958,0.10744612,1894.2,1894.1,10.57059]
[1680712434261,0.10744612,1894.2,1894.1,9.46659]
[1680712435093,0.10744612,1894.2,1894.1,10.58159]
[1680712436757,0.10464633,1894.2,1894.1,10.58159]
[1680712443200,0.11000001,1894.4,1894.1,10.58159]
[1680712443402,0.11000001,1894.4,1894.3,1.115]
[1680712443588,0.11000001,1894.4,1894.3,1.345]
[1680712444178,0.35925301,1894.4,1894.3,1.345]
[1680712450010,0.35925301,1894.4,1894.3,1.88434285]
[1680712450508,0.35925301,1894.4,1894.3,0.76934285]
[1680712450717,0.35925301,1894.4,1894.3,0.53934285]
[1680712450916,0.35925301,1894.4,1894.2,3.002]
[1680712451223,0.35925301,1894.4,1894.2,3.0]
[1680712454421,0.35925301,1894.4,1894.2,3.00340033]
[1680712454610,0.35925301,1894.4,1894.3,0.30034003]
[1680712456403,0.35925301,1894.4,1894.3,0.53034003]
[1680712457290,0.35925301,1894.4,1894.3,1.05640509]
[1680712457715,0.35925301,1894.4,1894.3,2.16240509]
[1680712459124,0.35925301,1894.4,1894.3,1.05640509]
[1680712460031,0.35925301,1894.4,1894.3,2.16540509]
[1680712460922,0.35925301,1894.4,1894.3,1.05640509]
[1680712464968,0.35925301,1894.4,1894.3,2.16540509]
[1680712465461,0.13368,1894.4,1894.3,2.17140509]
[1680712466019,0.61800001,1895.1,1894.3,2.17140509]
[1680712466255,0.11800001,1895.1,1894.6,1.115]
[1680712466642,0.11800001,1895.1,1894.7,0.23]
[1680712467026,0.23507818,1895.0,1894.7,0.23]
[1680712468472,0.23507818,1895.0,1894.7,0.3636]
[1680712469726,0.23507818,1895.0,1894.7,0.36699944]
[1680712471879,0.23507818,1895.0,1894.7,0.23339944]
[1680712472034,0.23507818,1895.0,1894.7,0.00339944]
[1680712473334,0.24307818,1895.0,1894.7,0.00339944]
[1680712473556,0.24307818,1895.0,1894.6,0.23]
[1680712482958,0.42776818,1895.0,1894.4,0.002]
[1680712483220,10.348344,1895.0,1894.4,0.23]
[1680712483464,1.0,1894.9,1894.3,0.66218496]
[1680712483766,2.2275444,1894.9,1894.3,0.1341199]
[1680712484085,0.21714481,1894.8,1894.3,0.1341199]
[1680712484270,0.19271,1894.8,1894.3,0.1341199]
[1680712484605,0.71980796,1894.8,1894.3,0.1341199]
[1680712484754,0.90451796,1894.8,1894.3,0.1341199]
[1680712485755,0.71980796,1894.8,1894.3,0.1341199]
[1680712489048,0.71180796,1894.8,1894.3,0.1361199]
[1680712489263,0.71180796,1894.8,1894.3,0.1381199]
[1680712489490,0.71180796,1894.8,1894.3,0.45267192]
[1680712489683,8.04036955,1894.9,1894.3,0.45467192]
[1680712489892,6.92536955,1894.9,1894.3,0.45467192]
[1680712490094,5.89053515,1894.9,1894.3,0.45267192]
[1680712490386,5.88261959,1894.9,1894.4,0.23]
[1680712492486,5.88261959,1894.9,1894.4,0.232]
[1680712492676,5.88261959,1894.9,1894.4,0.35274313]
[1680712493196,4.88261959,1894.9,1894.4,1.29474313]
[1680712493366,4.88061959,1894.9,1894.4,1.29874313]
[1680712494081,4.88061959,1894.9,1894.5,0.0033998]
[1680712494390,0.002,1895.0,1894.5,1.07561409]
[1680712494599,0.11000001,1895.1,1894.6,0.23]
[1680712494769,0.29469001,1895.1,1894.6,0.36056141]
[1680712496395,0.29469001,1895.1,1894.6,0.16056141]
[1680712496599,0.30233671,1895.1,1894.6,0.13056141]
[1680712496903,4.89546538,1895.1,1894.6,0.13056141]
[1680712497105,0.21341631,1895.0,1894.6,0.942]
[1680712497258,0.21341631,1895.0,1894.7,0.00339944]
[1680712497864,0.39810631,1895.0,1894.5,3.13021429]
[1680712498298,0.39810631,1895.0,1894.6,0.31302143]
[1680712498563,0.21341631,1895.0,1894.6,0.31302143]
[1680712498798,0.21341631,1895.0,1894.7,0.23]
[1680712499175,0.39810631,1895.0,1894.7,0.23]
[1680712499692,0.21341631,1895.0,1894.7,0.23]
[1680712501175,0.21341631,1895.0,1894.7,0.28430214]
[1680712510796,0.21341631,1895.0,1894.7,0.23]
[1680712511307,0.21341631,1895.0,1894.6,0.23339962]
[1680712513296,0.39810631,1895.0,1894.6,0.23339962]
[1680712513624,0.21341631,1895.0,1894.6,0.00339962]
[1680712513821,0.21341631,1895.0,1894.5,3.0]
[1680712513992,0.40822694,1895.0,1894.5,3.0]
[1680712514692,0.59291694,1895.0,1894.5,3.0]
[1680712515227,0.942,1894.9,1894.4,0.002]
[1680712515531,0.934,1894.8,1894.3,0.65687927]
[1680712515826,0.18472,1894.8,1894.3,0.1341199]
[1680712516202,0.20395515,1894.8,1894.3,0.1341199]
[1680712516402,0.01923515,1894.8,1894.3,0.1341199]
[1680712516613,0.20394515,1894.8,1894.3,0.1341199]
[1680712518825,0.2011966,1894.8,1894.3,0.1341199]
[1680712519011,0.2011966,1894.8,1894.3,0.1361199]
[1680712519195,1.84352643,1894.8,1894.3,0.1341199]
[1680712519397,1.84352643,1894.8,1894.3,0.1381199]
[1680712519728,1.65881643,1894.8,1894.3,0.1381199]
[1680712520428,1.65881643,1894.8,1894.3,0.1361199]
[1680712521126,1.65881643,1894.8,1894.3,0.1381199]
[1680712521336,0.16588164,1894.7,1894.3,0.1381199]
[1680712522831,0.16588164,1894.7,1894.3,0.1341199]
[1680712525933,0.35060164,1894.7,1894.3,0.1341199]
[1680712526838,0.35060164,1894.7,1894.2,3.01201228]
[1680712528318,0.18474,1894.6,1894.2,3.80903351]
[1680712530626,0.0164866,1894.8,1894.2,3.80903351]
[1680712530829,0.0164866,1894.8,1894.3,0.38090335]
[1680712533140,0.2012066,1894.8,1894.3,0.38090335]
[1680712533338,1.1352066,1894.8,1894.3,0.38090335]
[1680712533503,1.1352066,1894.8,1894.2,3.80302123]
[1680712535246,1.5046366,1894.8,1894.2,3.80302123]
[1680712535407,1.5046366,1894.8,1894.2,3.006]
[1680712537111,0.934,1894.7,1894.2,3.006]
[1680712537441,1.29317,1894.6,1894.1,0.006]
[1680712537641,0.129317,1894.5,1894.1,3.0]
[1680712537850,0.129317,1894.5,1894.1,3.006]
[1680712537851,0.55426,1894.4,1894.1,3.006]
[1680712538152,0.55426,1894.4,1894.1,0.006]
[1680712538318,0.6226177,1894.4,1894.1,0.006]
[1680712539613,0.0683577,1894.4,1894.1,0.006]
[1680712540349,5.131417,1894.5,1894.1,0.006]
[1680712541840,5.0021,1894.5,1894.1,0.2420126]
[1680712542039,0.002,1894.5,1894.1,0.2420126]
[1680712542244,0.0164866,1894.7,1894.1,0.2360126]
[1680712542448,0.0164866,1894.7,1894.1,0.2400126]
[1680712543460,0.0164866,1894.7,1894.1,1.65900386]
[1680712543950,0.2012066,1894.7,1894.1,1.65900386]
[1680712544139,0.0164866,1894.7,1894.1,1.65900386]
[1680712544753,0.2012166,1894.7,1894.1,1.65900386]
[1680712545152,0.5706666,1894.7,1894.1,0.006]
[1680712545357,0.934,1894.5,1894.1,0.006]
[1680712545521,0.18175939,1894.4,1893.9,0.008]
[1680712545721,0.29333533,1894.4,1893.8,0.67834458]
[1680712545924,0.66284533,1894.4,1893.8,0.67834458]
[1680712546451,0.55126939,1894.4,1893.8,0.67234458]
[1680712546651,0.55126939,1894.4,1893.8,0.13162725]
[1680712547224,1.48526939,1894.4,1893.8,3.13162725]
[1680712547418,1.48526939,1894.4,1893.8,0.13762725]
[1680712547631,0.14852694,1894.3,1893.8,0.13162725]
[1680712547863,2.23541,1894.2,1893.7,0.008]
[1680712548176,0.55438,1894.0,1893.4,4.9429]
[1680712548358,0.55438,1894.0,1893.4,4.9489]
[1680712549018,0.5708666,1894.0,1893.4,5.0776694]
[1680712549246,0.5708666,1894.0,1893.5,0.50776694]
[1680712549555,0.2012766,1894.0,1893.5,0.51376694]
[1680712549754,0.0164866,1894.0,1893.5,0.51376694]
[1680712549942,0.0164866,1894.0,1893.5,3.51376694]
[1680712549943,0.2012766,1894.0,1893.5,3.51376694]
[1680712550145,0.0164866,1894.0,1893.5,3.51376694]
[1680712550348,1.02689836,1894.0,1893.5,3.51376694]
[1680712550549,1.02689836,1894.0,1893.5,3.006]
[1680712551939,0.002,1894.1,1893.7,0.942]
[1680712552140,30.23151,1894.4,1893.8,0.23]
[1680712552361,30.23151,1894.4,1893.8,0.3472]
[1680712552530,0.37151,1894.4,1893.8,0.3472]
[1680712552734,0.36951,1894.4,1893.8,0.35321355]
[1680712553058,0.18475,1894.4,1893.8,0.35321355]
[1680712553423,0.55426,1894.4,1893.8,0.35321355]
[1680712553627,0.64828366,1894.4,1893.8,0.35321355]
[1680712556665,0.55432,1894.2,1893.8,0.35321355]
[1680712557368,0.55432,1894.2,1893.8,0.87459904]
[1680712557534,0.55432,1894.2,1893.8,0.35321355]
[1680712560044,0.18477,1894.2,1893.8,0.35321355]
[1680712560370,0.0096467,1894.6,1893.9,1.112]
[1680712560672,1.114,1894.9,1894.0,1.2152]
[1680712560673,15.46332,1894.7,1894.0,1.2152]
[1680712560839,15.46332,1894.7,1894.1,5.112]
[1680712560840,15.46532,1894.7,1894.1,5.112]
[1680712561034,15.46532,1894.7,1894.2,3.5112]
[1680712561035,15.4894533,1894.7,1894.2,3.5112]
[1680712562449,0.007,1894.7,1894.2,3.5112]
[1680712562768,0.11764671,1895.1,1894.5,1.114]
[1680712562950,0.11000001,1895.1,1894.5,1.114]
[1680712563141,0.01000001,1895.1,1894.9,1.114]
[1680712563344,0.01000001,1895.1,1895.0,0.1114]
[1680712563539,0.01000001,1895.1,1894.8,4.11]
[1680712563846,0.01000001,1895.1,1894.8,3.006]
[1680712564573,0.19468001,1895.1,1894.8,0.006]
[1680712564778,0.19468001,1895.1,1894.7,0.006]
[1680712565154,0.56405001,1895.1,1894.7,0.006]
[1680712565359,0.19468001,1895.1,1894.7,0.006]
[1680712565671,0.56405001,1895.1,1894.7,3.002]
[1680712565876,0.056405,1895.0,1894.7,3.006]
[1680712566188,0.55411,1894.9,1894.7,0.006]
[1680712566388,0.55411,1894.9,1894.6,0.01201101]
[1680712566691,0.55411,1894.9,1894.6,0.00601101]
[1680712568297,0.55411,1894.9,1894.6,0.00301101]
[1680712586629,0.1847,1894.9,1894.6,0.00301101]
[1680712586832,5.01403671,1895.1,1894.6,0.00301101]
[1680712587058,0.20433671,1895.1,1894.6,1.10701101]
[1680712587261,0.19469001,1895.1,1894.7,0.3407011]
[1680712587531,0.19468001,1895.1,1894.7,3.3407011]
[1680712587877,0.01000001,1895.1,1894.8,1.44807011]
[1680712588036,0.01000001,1895.1,1894.9,4.8162]
[1680712588229,0.01000001,1895.1,1895.0,3.0]
[1680712588655,0.19468001,1895.1,1895.0,3.0]
[1680712588856,0.19468001,1895.1,1895.0,3.78182]
[1680712589792,0.01000001,1895.1,1895.0,3.78182]
[1680712591394,0.01000001,1895.1,1895.0,5.12898035]
[1680712591698,0.01000001,1895.1,1895.0,5.13098035]
[1680712592058,0.01000001,1895.1,1895.0,4.01698035]
[1680712592280,0.01000001,1895.1,1895.0,4.01498035]
[1680712592584,0.00761613,1895.1,1895.0,4.01498035]
[1680712594477,0.00761613,1895.1,1895.0,5.12898035]
[1680712594723,0.00761613,1895.1,1895.0,5.13098035]
[1680712595186,0.00761613,1895.1,1895.0,4.01698035]
[1680712595386,0.00761613,1895.1,1895.0,4.01498035]
[1680712596027,0.00761613,1895.1,1895.0,1.51498035]
[1680712596339,0.00761613,1895.1,1895.0,2.62898035]
[1680712596535,0.00761613,1895.1,1895.0,13.10628035]
[1680712596681,0.00761613,1895.1,1895.0,13.10828035]
[1680712597319,0.11000001,1895.6,1895.1,1.81082803]
[1680712597544,0.11000001,1895.6,1895.2,5.8294]
[1680712597826,0.11000001,1895.6,1895.2,4.8314]
[1680712598027,0.11000001,1895.6,1895.3,1.11]
[1680712598234,0.11000001,1895.6,1895.4,0.23]
[1680712598396,0.11000001,1895.6,1895.4,0.664]
[1680712600020,0.11000001,1895.6,1895.4,1.776]
[1680712601733,0.11000001,1895.6,1895.4,1.768]
[1680712602087,0.11000001,1895.6,1895.4,2.29143467]
[1680712604542,0.11000001,1895.6,1895.5,1.11715951]
[1680712604741,0.11000001,1895.6,1895.5,6.40571893]
[1680712604892,0.11000001,1895.6,1895.5,9.40771893]
[1680712605642,0.11000001,1895.6,1895.5,14.68871893]
[1680712605939,0.11000001,1895.6,1895.5,13.57471893]
[1680712606295,0.11000001,1895.6,1895.5,10.40771893]
[1680712608725,0.11000001,1895.6,1895.5,9.40771893]
[1680712610712,0.11000001,1895.6,1895.5,12.57471893]
[1680712613235,0.11000001,1895.6,1895.5,9.17771893]
[1680712613754,0.11000001,1895.6,1895.5,8.06371893]
[1680712613917,0.11000001,1895.6,1895.5,0.23245942]
[1680712614117,0.11000001,1895.6,1895.4,0.95743467]
[1680712614318,0.11000001,1895.6,1895.4,2.07143467]
[1680712614758,0.11000001,1895.6,1895.4,2.20103943]
[1680712615151,0.11000001,1895.6,1895.4,5.20103943]
[1680712615324,0.11000001,1895.6,1895.5,0.75010394]
[1680712615525,0.11000001,1895.6,1895.5,3.75010394]
[1680712615925,0.12948661,1895.6,1895.5,3.0]
[1680712616127,0.12948661,1895.6,1895.4,3.65503943]
[1680712616342,0.12948661,1895.6,1895.4,0.65303943]
[1680712616557,0.12948661,1895.6,1895.4,0.12960476]
[1680712618053,0.12948661,1895.6,1895.4,3.07960476]
[1680712618579,0.12948661,1895.6,1895.5,3.0]
[1680712618780,0.11000001,1895.6,1895.4,0.08476444]
[1680712618984,0.11000001,1895.6,1895.5,0.23]
[1680712623197,0.06000001,1895.6,1895.5,0.23]
[1680712636701,0.06000001,1895.6,1895.5,1.342]
[1680712636903,0.06000001,1895.6,1895.5,4.68747182]
[1680712637108,0.06000001,1895.6,1895.5,12.45457182]
[1680712637292,0.06000001,1895.6,1895.5,12.45657182]
[1680712637730,0.06000001,1895.6,1895.5,7.94757182]
[1680712637899,0.06000001,1895.6,1895.5,0.002]
[1680712638221,0.06000001,1895.6,1895.4,0.07960476]
[1680712638425,1e-08,1895.6,1895.4,0.07960476]
[1680712638584,0.11500001,1896.3,1896.0,0.5505]
[1680712638786,0.04153302,1896.3,1896.0,1.6545]
[1680712639027,0.11000001,1896.6,1896.0,0.5505]
[1680712639232,0.11000001,1896.6,1896.0,0.57216899]
[1680712639426,0.11000001,1896.6,1896.0,0.57616899]
[1680712639791,0.11000001,1896.6,1896.1,0.23]
[1680712639998,0.11000001,1896.6,1896.1,0.236]
[1680712650239,0.11000001,1896.6,1896.1,0.234]
[1680712650437,0.11000001,1896.6,1896.1,1.51518637]
[1680712650840,0.11000001,1896.6,1896.1,2.62718637]
[1680712651041,0.11000001,1896.6,1896.2,3.0]
[1680712651241,0.11000001,1896.6,1896.3,0.23]
[1680712651446,0.11000001,1896.6,1896.3,0.236]
[1680712651647,0.11000001,1896.6,1896.3,0.5596]
[1680712654367,0.11000001,1896.6,1896.3,0.58126557]
[1680712655759,0.11000001,1896.6,1896.3,0.5596]
[1680712655960,0.11000001,1896.6,1896.3,0.236]
[1680712662455,0.1062851,1896.6,1896.3,0.23]
[1680712667207,0.1062851,1896.6,1896.3,1.34]
[1680712667391,0.1062851,1896.6,1896.3,5.9987]
[1680712667713,0.1062851,1896.6,1896.4,3.0]
[1680712667915,0.1062851,1896.6,1896.5,0.53]
[1680712672433,0.1062851,1896.6,1896.5,1.05846818]
[1680712678736,1.4048251,1896.6,1896.4,0.002]
[1680712678934,1.114,1896.5,1896.1,0.13088864]
[1680712679135,1.109,1896.4,1896.1,0.13088864]
[1680712679334,1.29156,1896.4,1896.1,0.13088864]
[1680712679536,5.98616,1896.4,1896.1,0.13088864]
[1680712679738,5.98816,1896.4,1896.1,0.13088864]
[1680712679936,0.598816,1896.3,1896.1,0.13088864]
[1680712680480,4.6966,1896.4,1896.1,0.13088864]
[1680712680684,4.6946,1896.4,1896.1,0.13088864]
[1680712681769,1.114,1896.2,1895.7,0.006]
[1680712681988,4.13765,1896.3,1895.6,0.52704664]
[1680712681989,1.114,1896.0,1895.6,0.52704664]
[1680712682131,1.55383,1895.9,1895.6,0.51904664]
[1680712682338,1.109,1895.7,1895.4,0.07960476]
[1680712682551,0.18463,1895.6,1895.4,0.07960476]
[1680712682751,1.454003,1895.8,1895.4,0.07960476]
[1680712685453,1.66785,1895.8,1895.4,0.07960476]
[1680712685688,1.0,1895.5,1895.4,0.07960476]
[1680712685867,1.0,1895.4,1895.2,0.210801]
[1680712686211,1.29566,1895.3,1895.2,0.210801]
[1680712686687,10.1826,1895.5,1895.2,0.210801]
[1680712686987,10.36725,1895.5,1895.2,0.210801]
[1680712687196,10.1826,1895.5,1895.2,0.210801]
[1680712687397,10.36724,1895.5,1895.2,0.210801]
[1680712688194,10.1826,1895.5,1895.2,0.210801]
[1680712689763,0.002,1895.5,1895.2,0.210801]
[1680712689967,2.29862,1895.8,1895.2,0.210801]
[1680712690177,14.6564,1895.9,1895.3,1.114]
[1680712690466,0.002,1895.9,1895.4,0.23]
[1680712690710,0.18458,1896.2,1895.4,0.23]
[1680712690896,0.414438,1896.2,1895.4,0.3644]
[1680712691762,0.229858,1896.2,1895.4,0.3644]
[1680712692119,1.29558,1896.2,1895.4,0.3644]
[1680712692712,1.29558,1896.2,1895.5,0.0216747]
[1680712692864,1.111,1896.2,1895.5,0.0216747]
[1680712693065,1.114,1896.3,1895.5,0.0216747]
[1680712693265,1.29857,1896.3,1895.5,0.17168217]
[1680712693518,14.4969,1896.4,1895.6,0.23]
[1680712693799,14.4969,1896.4,1895.7,0.02167241]
[1680712694301,0.002,1896.4,1896.1,1.112]
[1680712694467,0.1062851,1896.6,1896.2,1.35566669]
[1680712694667,0.11000001,1896.7,1896.3,0.13556667]
[1680712694902,0.11000001,1896.7,1896.4,0.23]
[1680712695262,0.11000001,1896.7,1896.4,0.25166441]
[1680712703785,0.11000001,1896.7,1896.4,0.777925]
[1680712704031,0.11000001,1896.7,1896.5,0.0777925]
[1680712704181,0.11000001,1896.7,1896.4,0.25166441]
[1680712705104,0.11000001,1896.7,1896.6,1.114]
[1680712705307,0.26909713,1896.8,1896.6,0.23]
[1680712705518,0.26909713,1896.8,1896.6,0.3644]
[1680712705698,0.26909713,1896.8,1896.7,0.23]
[1680712707005,0.26909713,1896.8,1896.7,1.34]
[1680712707182,0.26909713,1896.8,1896.7,2.34]
[1680712707383,0.26909713,1896.8,1896.7,1.34]
[1680712707595,0.26909713,1896.8,1896.7,0.23]
[1680712707799,0.26909713,1896.8,1896.6,0.23]
[1680712708002,0.26909713,1896.8,1896.6,2.13709]
[1680712708844,0.26909713,1896.8,1896.7,0.02166098]
[1680712708991,0.26909713,1896.8,1896.7,3.02166098]
[1680712709189,0.26909713,1896.8,1896.7,3.25166098]
[1680712709901,0.26909713,1896.8,1896.7,0.25166098]
[1680712710103,0.26909713,1896.8,1896.7,0.76773608]
[1680712710305,0.26909713,1896.8,1896.7,3.7460751]
[1680712710509,0.26909713,1896.8,1896.7,3.23]
[1680712710831,0.26909713,1896.8,1896.7,3.0]
[1680712711208,0.26909713,1896.8,1896.5,0.008]
[1680712711410,0.26909713,1896.8,1896.4,0.67033112]
[1680712713001,0.26909713,1896.8,1896.5,0.23]
[1680712713204,0.26909713,1896.8,1896.5,0.32003311]
[1680712715531,0.26909713,1896.8,1896.6,1.11]
[1680712715830,0.26909713,1896.8,1896.7,1.342]
[1680712716556,0.05817213,1896.8,1896.7,1.342]
[1680712716747,0.05817213,1896.8,1896.7,1.4762]
[1680712717966,0.11000001,1896.9,1896.8,0.02165984]
[1680712718166,0.01000001,1896.9,1896.8,5.24765984]
[1680712718373,0.01000001,1896.9,1896.8,6.47965984]
[1680712718544,0.01000001,1896.9,1896.8,7.45774582]
[1680712718739,0.01000001,1896.9,1896.8,5.34574582]
[1680712718967,0.01000001,1896.9,1896.8,4.36765984]
[1680712719158,0.01000001,1896.9,1896.8,0.25165984]
[1680712719357,0.01000001,1896.9,1896.8,1.35565984]
[1680712721446,0.01000001,1896.9,1896.8,0.25165984]
[1680712722258,0.01000001,1896.9,1896.8,1.36565984]
[1680712722462,0.01000001,1896.9,1896.8,1.92704582]
[1680712725696,0.01000001,1896.9,1896.8,3.04104582]
[1680712725994,0.01000001,1896.9,1896.8,6.04104582]
[1680712726153,0.01000001,1896.9,1896.8,6.04304582]
[1680712726599,0.01000001,1896.9,1896.8,6.30649524]
[1680712726769,0.01000001,1896.9,1896.8,6.04304582]
[1680712726980,0.01000001,1896.9,1896.8,4.92904582]
[1680712727175,0.01000001,1896.9,1896.8,4.92704582]
[1680712730476,0.01000001,1896.9,1896.8,9.20804582]
[1680712730672,0.01000001,1896.9,1896.8,9.21004582]
[1680712730885,0.01000001,1896.9,1896.8,6.04304582]
[1680712731821,0.01000001,1896.9,1896.8,4.92904582]
[1680712731983,0.01000001,1896.9,1896.8,4.92704582]
[1680712732387,0.01000001,1896.9,1896.8,9.20804582]
[1680712732615,0.01000001,1896.9,1896.8,6.04304582]
[1680712736618,0.01000001,1896.9,1896.8,4.92904582]
[1680712736814,0.01000001,1896.9,1896.8,1.92704582]
[1680712737046,0.01000001,1896.9,1896.7,3.008]
[1680712737315,0.01000001,1896.9,1896.7,3.0]
[1680712737927,0.01000001,1896.9,1896.6,0.002]
[1680712738139,0.01000001,1896.9,1896.5,0.002]
[1680712738291,0.01000001,1896.9,1896.5,1.114]
[1680712738967,0.01000001,1896.9,1896.6,1.11]
[1680712739373,0.01000001,1896.9,1896.7,0.23]
[1680712741358,0.01000001,1896.9,1896.6,0.23]
[1680712741557,0.00762088,1896.9,1896.6,0.23]
[1680712741731,0.00762088,1896.9,1896.6,0.66656633]
[1680712742277,0.00762088,1896.9,1896.5,1.13566328]
[1680712742431,0.00762088,1896.9,1896.5,0.02166328]
[1680712743694,0.00762088,1896.9,1896.5,0.25166328]
[1680712748982,0.00762088,1896.9,1896.5,3.41866328]
[1680712749281,0.00762088,1896.9,1896.7,1.114]
[1680712749481,0.00762088,1896.9,1896.8,0.23]
[1680712752286,0.00762088,1896.9,1896.8,1.344]
[1680712752849,0.00762088,1896.9,1896.8,0.23]
[1680712754351,0.00762088,1896.9,1896.8,0.25165984]
[1680712754551,0.00762088,1896.9,1896.8,1.36165984]
[1680712754787,0.00762088,1896.9,1896.8,0.25165984]
[1680712758069,0.00762088,1896.9,1896.8,1.36565984]
[1680712758465,0.00762088,1896.9,1896.8,4.53265984]
[1680712758693,0.00762088,1896.9,1896.8,8.28672582]
[1680712758902,0.00762088,1896.9,1896.8,8.28872582]
[1680712759187,1e-08,1897.0,1896.8,8.28872582]
[1680712759391,1e-08,1897.0,1896.9,3.0]
[1680712759596,1e-08,1897.0,1896.9,9.26807258]
[1680712759756,1e-08,1897.0,1896.9,9.27007258]
[1680712759957,1e-08,1897.0,1896.9,3.002]
[1680712760164,1e-08,1897.0,1896.9,3.0]
[1680712760563,1e-08,1897.0,1896.7,3.008]
[1680712760763,1e-08,1897.0,1896.7,3.0]
[1680712760964,1e-08,1897.0,1896.8,0.3]
[1680712762374,1e-08,1897.0,1896.9,0.23]
[1680712762794,1e-08,1897.0,1896.9,3.23]
[1680712764000,1e-08,1897.0,1896.8,0.002]
[1680712764199,1e-08,1897.0,1896.7,7.83536098]
[1680712764497,1e-08,1897.0,1896.7,9.09531708]
[1680712765283,1e-08,1897.0,1896.7,7.83736098]
[1680712765485,1e-08,1897.0,1896.7,3.02366098]
[1680712765808,1e-08,1897.0,1896.7,0.02166098]
[1680712766007,1.11100001,1897.0,1896.5,7.8157]
[1680712766209,1.114,1896.9,1896.5,0.002]
[1680712766393,0.58199001,1897.0,1896.4,0.64866671]
[1680712766394,1.109,1896.8,1896.4,0.64866671]
[1680712766580,1.2199,1896.8,1896.4,0.13316724]
[1680712766783,1.109,1896.7,1896.4,0.13316724]
[1680712767509,1.111,1896.5,1896.0,0.0389204]
[1680712767710,1.111,1896.5,1896.0,0.0369204]
[1680712768019,1.111,1896.4,1896.0,0.0369204]
[1680712768616,1.114,1896.5,1896.0,0.0369204]
[1680712768794,1.114,1896.5,1896.0,0.09245137]
[1680712769410,1.114,1896.5,1896.0,0.0369204]
[1680712769909,7.0805,1896.6,1896.0,0.16671]
[1680712770895,7.0805,1896.6,1896.1,0.23]
[1680712772987,4.7642,1896.7,1896.2,0.02166669]
[1680712774087,5.46301,1896.7,1896.2,0.02166669]
[1680712774286,4.7662,1896.7,1896.2,0.02166669]
[1680712774515,4.7642,1896.7,1896.2,0.02166669]
[1680712775221,0.008,1896.7,1896.2,0.02166669]
[1680712775384,9.6171,1896.9,1896.2,0.02166669]
[1680712775596,9.6171,1896.9,1896.2,0.97541376]
[1680712775805,9.6171,1896.9,1896.3,0.23]
[1680712776321,9.6171,1896.9,1896.3,3.397]
[1680712776322,0.01,1896.9,1896.3,3.397]
[1680712776487,1e-08,1897.0,1896.4,9.0731]
[1680712776687,1e-08,1897.0,1896.5,1.13731]
[1680712779527,1.114,1897.3,1897.0,0.00321633]
[1680712779723,15.6633,1897.4,1897.0,0.00321633]
[1680712780221,14.5523,1897.4,1897.0,0.00321633]
[1680712780731,15.6613,1897.4,1897.0,0.00321633]
[1680712780930,17.33923,1897.4,1897.0,0.00321633]
[1680712781325,16.23023,1897.4,1897.0,0.00321633]
[1680712781524,14.5523,1897.4,1897.0,0.00321633]
[1680712783728,14.5523,1897.4,1897.0,0.52112533]
[1680712783933,14.5523,1897.4,1897.0,0.00321633]
[1680712787799,15.6663,1897.4,1897.0,0.53579323]
[1680712787996,1.75770835,1897.3,1897.0,0.00321633]
[1680712789095,1.114,1897.2,1897.0,0.00321633]
[1680712789296,15.6663,1897.4,1897.0,0.00321633]
[1680712789526,17.363176,1897.4,1897.0,0.5292563]
[1680712789712,17.371176,1897.4,1897.0,0.00321633]
[1680712790030,1.114,1897.3,1897.0,0.00321633]
[1680712791633,15.6743,1897.4,1897.0,0.00321633]
[1680712791795,15.6663,1897.4,1897.0,0.00321633]
[1680712791996,15.6743,1897.4,1897.0,0.00321633]
[1680712792203,14.5523,1897.4,1897.0,0.00321633]
[1680712796055,0.002,1897.4,1897.0,0.00321633]
[1680712796235,0.11000001,1897.5,1897.0,0.00321633]
[1680712796414,0.11000001,1897.5,1897.0,0.82019796]
[1680712796614,0.11000001,1897.5,1897.1,0.23]
[1680712799432,0.11000001,1897.5,1897.1,0.7493802]
[1680712799756,0.11000001,1897.5,1897.1,0.25165642]
[1680712800068,0.10756166,1897.5,1897.1,0.37194553]
[1680712802269,0.10756166,1897.5,1897.1,0.35028911]
[1680712802772,0.10756166,1897.5,1897.1,0.87674649]
[1680712802970,0.10756166,1897.5,1897.1,0.35028911]
[1680712803122,0.10756166,1897.5,1897.1,0.23]
[1680712803324,1.114,1897.4,1897.1,0.23]
[1680712803576,1.114,1897.2,1897.0,0.13425306]
[1680712803881,0.1114,1897.1,1897.0,0.13425306]
[1680712804034,15.50277,1897.3,1897.0,0.13425306]
[1680712804957,1.114,1897.2,1897.0,0.13425306]
[1680712805158,15.3183,1897.3,1897.0,0.13425306]
[1680712805365,15.51077,1897.3,1896.5,0.02166328]
[1680712805529,1.53183,1897.2,1896.5,0.02166328]
[1680712805730,1.53983,1897.2,1896.5,0.02166328]
[1680712805949,2.83531,1897.2,1896.5,0.02166328]
[1680712806163,1.397531,1897.1,1896.5,0.02166328]
[1680712806481,1.405531,1897.1,1896.5,0.02166328]
[1680712807028,1.111,1897.0,1896.5,0.02166328]
[1680712807527,1.114,1896.8,1896.2,0.002]
[1680712807858,11.0005,1896.9,1896.0,6.00361]
[1680712808058,11.0105,1896.9,1896.0,6.00561]
[1680712808360,12.56893,1896.9,1896.1,0.600561]
[1680712808934,1.114,1896.8,1896.2,0.23]
[1680712809265,1.114,1896.7,1896.2,0.23]
[1680712810675,1.114,1896.3,1896.0,0.16671]
[1680712811046,1.114,1896.4,1896.0,0.16671]
[1680712812075,1.109,1896.3,1896.0,0.16671]
[1680712812281,1.122,1896.4,1896.0,0.16671]
[1680712812670,0.008,1896.4,1896.0,0.16671]